Workbook

Sheet Intro
A2: Smals Cloud Service Security Assessment Model
A3: VERSION: | B3: 2.5
A4: LICENSE: | B4: Creative Commons Attribution-NonCommercial-ShareAlike 4.0 International License
B5: http://creativecommons.org/licenses/by-nc-sa/4.0/
A8: Change tracking
A9: 1.0 | B9: 2014-11-28 | C9: First release
A10: 2.0 | B10: 2014-12-16 | C10: The ponderations are now locked
A11: 2.1 | B11: 2015-06-08 | C11: Some visual and security enhancements have been added
A12: 2.2 | B12: 2016-02-08 | C12: Correction of a ponderation
A13: 2.3 | B13: 2016-02-16 | C13: Correction related to the compliance with the cloud policy
A14: 2.4 | B14: 2016-04-19 | C14: Some visual and security enhancements have been added
A15: 2.5 | B15: 2017-06-28 | C15: Some modifications in the questions have been added
A17: How to use this template:
A18: 1. | B18: The goal of this evaluation form is for a person (called assessor) to assess the security level of a cloud service offered by a Cloud Service Provider (CSP) according to 4 main criteria: - Governance - Identity and Access Management (IAM) - IT Security - Operational Security
A19: 2. | B19: Before filling the evaluation form, the assessor should be in possession of all the public information that can be found on the official website of the cloud service, especially a standard contract and all the available datasheets. We assume that the information found about the cloud service on the official website are correct.
A20: 3. | B20: The "Information" tab should be filled with all the general info related to the assessment: cloud service name/provider/model, the name of the assessor, and the date of the assessment.
A21: 4. | B21: The "Assessment" tab contains all the questions necessary for the evaluation of a cloud service.
A22: 4.1. | B22: The column "answer's value" contains the relative score of each expected response for each question (over 100) as a reference. The cells containing the relative scores must not be changed.
A23: 4.2. | B23: The column "score" has to be filled using the possible answers.
B24: Note: The questions must be filled according to the given order, as some questions depend on the answers given in previous questions.
B25: Note: If a score is not applicable, the option "N/A" must be chosen. This will redistribute the weights to the other sub questions.
B26: Note: If the assessor does not know the answer to a question, the option "Unknown" must be chosen. This will give two different scores for one topic.
A27: 4.3. | B27: Each question has been defined with a specific weight. From the scores of each question, the final weighted scores are automatically filled (in combination with the defined weights).
A28: 4.4. | B28: There are 2 different results: the minimal weighted score and the maximal weighted score. - The minimal weighted score corresponds to the situation where all the "Unknown" responses have been replaced by the worst answer. This is the worst case of the security evaluation, considering the uncertainty of the "Unknown" responses. - The maximal weighted score corresponds to the situation where all the "Unknown" responses have been replaced by the best answer. This is the best case of the security evaluation, considering the uncertainty of the "Unknown" responses.
A29: 4.5. | B29: The two last columns grouped under "compliance with cloud policy" refer to the guarantees required by the cloud policy of the Social Security.
B30: The column "ignoring the data type" refers to the cloud policy guarantees that do not depend on the type of data to be stored in the cloud service.
B31: The column "if personal, social or medical data" refers to the additional cloud policy guarantees expected when the data to be stored in the cloud service are personal, social or medical.
A32: 5. | B32: The "Overview" tab is a visual aide for the assessor.
A33: 5.1. | B33: The chart represents the minimal and maximal weighted scores of each criterion.
A34: 5.2. | B34: The donuts represent the compliance to the cloud policy per criterion when the data type is ignored.
A35: 6. | B35: Be careful with the interpretation of the scores. This evaluation form is informative, and only a human judge should decide whether of not the evaluation is accurate enough. The human judge should contact the CSP of the cloud service if he needs additional information.

Sheet Information
B1: Cloud service informations
B3: Cloud service name: | C3: <name>
B4: Cloud service provider (CSP): | C4: <CSP>
B5: Cloud service model: | C5: <choose a model>
B6: Evaluated by: | C6: <assessor name>
B7: Evaluated date: | C7: <dd/mm/yyyy>

Sheet Assessment
B1: =CONCATENATE("Assessment of ",Information!C3) -> Assessment of <name>
B3: Category Title | C3: Answer's value | D3: Score | E3: N/A? | F3: Weight | G3: Weight | H3: Weight | I3: Weight | J3: Measured score | K3: Minimal weighted score | L3: Maximal weighted score | M3: Compliance with cloud policy
B4: For more information open the outline (+ / - ) left from row number | C4: Possibility to put some description in the question's rows | D4: Select appropriate range or value for every question (select N/A if not applicable) | F4: Fixed values per subsection | G4: Dynamic values per subsection from N/A | H4: Fixed values per section | I4: Dynamic values per section from N/A | K4: Values computed automated | L4: Values computed automated | M4: Ignoring the data type | N4: If personal, social or medical data
A5: 1 | B5: Governance | H5: =(H6+H67+H113+H170+H204) -> 1 | I5: =(I6+I67+I113+I170+I204) -> 1 | K5: =(K6+K67+K113+K170+K204) -> 0 | L5: =(L6+L67+L113+L170+L204) -> 0
A6: 1.1 | B6: Legal implication | E6: 1 | F6: =(F7+F16+F25+F36+F48+F56) -> 1 | G6: =(G7+G16+G25+G36+G48+G56) -> 1 | H6: 0.24 | I6: =IF(E6,H6*SUM($H$6,$H$67,$H$113,$H$170,$H$204,)/($E$6*$H$6+$E$67*$H$67+$E$113*$H$113+$E$170*$H$170+$E$204*$H$204),0) -> 0.24 | K6: =(K7+K16+K25+K36+K48+K56)*I6/100 -> 0 | L6: =(L7+L16+L25+L36+L48+L56)*I6/100 -> 0
A7: 1.1.1 | B7: What is the physical location of data (at-rest and for processing)? | E7: 1 | F7: 0.21 | G7: =IF(E7,F7*SUM($F$7,$F$16,$F$25,$F$36,$F$48,$F$56,)/($E$7*$F$7+$E$16*$F$16+$E$25*$F$25+$E$36*$F$36+$E$48*$F$48+$E$56*$F$56),0) -> 0.21 | J7: =IF(ISBLANK($D$7),0,VLOOKUP($D$7,$B$10:$C$14,2,0)) -> 0 | K7: =J7*G7 -> 0 | L7: =IF(ISBLANK(D7),0,IF(D7="Unknown",100*G7,J7*G7)) -> 0
B9: Score specification
B10: The country of the assessor | C10: 100
B11: EU | C11: 75
B12: US | C12: 50
B13: Other | C13: 25
B14: Unknown | C14: 25
A16: 1.1.2 | B16: Which jurisdiction is the CSP subject to? | E16: 1 | F16: 0.21 | G16: =IF(E16,F16*SUM($F$7,$F$16,$F$25,$F$36,$F$48,$F$56,)/($E$7*$F$7+$E$16*$F$16+$E$25*$F$25+$E$36*$F$36+$E$48*$F$48+$E$56*$F$56),0) -> 0.21 | J16: =IF(ISBLANK($D$16),0,VLOOKUP($D$16,$B$19:$C$23,2,0)) -> 0 | K16: =J16*G16 -> 0 | L16: =IF(ISBLANK(D16),0,IF(D16="Unknown",100*G16,J16*G16)) -> 0 | M16: =IF(OR(D16="The country of the assessor",D16="EU"),"V",IF(D16="Unknown","??","X")) -> X
B18: Score specification
B19: The country of the assessor | C19: 100
B20: EU | C20: 75
B21: US | C21: 50
B22: Other | C22: 25
B23: Unknown | C23: 25
A25: 1.1.3 | B25: Can the CSP accomodate with the tenant's data retention requirements? | E25: =IF($D25="N/A",0,1) -> 1 | F25: 0.08 | G25: =IF(E25,F25*SUM($F$7,$F$16,$F$25,$F$36,$F$48,$F$56,)/($E$7*$F$7+$E$16*$F$16+$E$25*$F$25+$E$36*$F$36+$E$48*$F$48+$E$56*$F$56),0) -> 0.08 | J25: =IF(ISBLANK($D$25),0,VLOOKUP($D$25,$B$31:$C$34,2,0)) -> 0 | K25: =J25*G25 -> 0 | L25: =IF(ISBLANK(D25),0,IF(D25="Unknown",100*G25,J25*G25)) -> 0
B27: Explanations / Examples
B28: E.g. either do not store data more than a few months, or store data for several years.
B30: Score specification
B31: Yes | C31: 100
B32: No | C32: 0
B33: Unknown | C33: 0
B34: N/A | C34: -1
A36: 1.1.4 | B36: Can the data be given to governments if requested for judicial requirements without informing the tenant or without constitutional guarantees? | E36: =IF($D36="N/A",0,1) -> 1 | F36: 0.17 | G36: =IF(E36,F36*SUM($F$7,$F$16,$F$25,$F$36,$F$48,$F$56,)/($E$7*$F$7+$E$16*$F$16+$E$25*$F$25+$E$36*$F$36+$E$48*$F$48+$E$56*$F$56),0) -> 0.17 | J36: =IF(ISBLANK($D$36),0,VLOOKUP($D$36,$B$43:$C$46,2,0)) -> 0 | K36: =J36*G36 -> 0 | L36: =IF(ISBLANK(D36),0,IF(D36="Unknown",100*G36,J36*G36)) -> 0 | M36: =IF(D36="No","V",IF(D36="Unknown","??",IF(D36="N/A","N/A","X"))) -> X
B38: Explanations / Examples
B39: The jurisdiction of the CSP should be taken into account.
B40: E.g. if the Patriot Act applies.
B42: Score specification
B43: Yes | C43: 0
B44: No | C44: 100
B45: Unknown | C45: 0
B46: N/A | C46: -1
A48: 1.1.5 | B48: Can the data be given to, shared with third parties, or used by the CSP for other purposes than the cloud service without the tenant’s consent? | E48: =IF($D48="N/A",0,1) -> 1 | F48: 0.25 | G48: =IF(E48,F48*SUM($F$7,$F$16,$F$25,$F$36,$F$48,$F$56,)/($E$7*$F$7+$E$16*$F$16+$E$25*$F$25+$E$36*$F$36+$E$48*$F$48+$E$56*$F$56),0) -> 0.25 | J48: =IF(ISBLANK($D$48),0,VLOOKUP($D$48,$B$51:$C$54,2,0)) -> 0 | K48: =J48*G48 -> 0 | L48: =IF(ISBLANK(D48),0,IF(D48="Unknown",100*G48,J48*G48)) -> 0 | M48: =IF(D48="No","V",IF(D48="Unknown","??",IF(D48="N/A","N/A","X"))) -> X
B50: Score specification
B51: Yes | C51: 0
B52: No | C52: 100
B53: Unknown | C53: 0
B54: N/A | C54: -1
A56: 1.1.6 | B56: If the US-EU Safe Harbor or Privacy Shield apply, is the CSP registered? | E56: =IF($D56="N/A",0,1) -> 1 | F56: 0.08 | G56: =IF(E56,F56*SUM($F$7,$F$16,$F$25,$F$36,$F$48,$F$56,)/($E$7*$F$7+$E$16*$F$16+$E$25*$F$25+$E$36*$F$36+$E$48*$F$48+$E$56*$F$56),0) -> 0.08 | J56: =IF(ISBLANK($D$56),0,VLOOKUP($D$56,$B$62:$C$65,2,0)) -> 0 | K56: =J56*G56 -> 0 | L56: =IF(ISBLANK(D56),0,IF(D56="Unknown",100*G56,J56*G56)) -> 0
B58: Explanations / Examples
B59: This applies only to US CSP.
B61: Score specification
B62: Yes | C62: 100
B63: No | C63: 0
B64: Unknown | C64: 0
B65: N/A | C65: -1
A67: 1.2 | B67: Supply chain management | E67: 1 | F67: =(F68+F79+F90+F102) -> 1 | G67: =(G68+G79+G90+G102) -> 1 | H67: 0.22 | I67: =IF(E67,H67*SUM($H$6,$H$67,$H$113,$H$170,$H$204,)/($E$6*$H$6+$E$67*$H$67+$E$113*$H$113+$E$170*$H$170+$E$204*$H$204),0) -> 0.22 | K67: =(K68+K79+K90+K102)*I67/100 -> 0 | L67: =(L68+L79+L90+L102)*I67/100 -> 0
A68: 1.2.1 | B68: Does the CSP use subcontrators? | E68: =IF($D68="N/A",0,1) -> 1 | F68: 0.4 | G68: =IF(E68,F68*SUM($F$68,$F$79,$F$90,$F$102,)/($E$68*$F$68+$E$79*$F$79+$E$90*$F$90+$E$102*$F$102),0) -> 0.4 | J68: =IF(ISBLANK($D$68),0,VLOOKUP($D$68,$B$75:$C$77,2,0)) -> 0 | K68: =J68*G68 -> 0 | L68: =IF(ISBLANK(D68),0,IF(D68="Unknown",100*G68,J68*G68)) -> 0
B70: Explanations / Examples
B71: A subcontractor can be used for outsourced work.
B72: This is not a penalizing question, except if the answer is unknown.
B74: Score specification
B75: Yes | C75: 100
B76: No | C76: 100
B77: Unknown | C77: 50
A79: 1.2.2 | B79: If so, will the CSP inform the tenant of the subcontractors hired to provide the cloud service? | E79: =IF($D79="N/A",0,1) -> 1 | F79: 0.2 | G79: =IF(E79,F79*SUM($F$68,$F$79,$F$90,$F$102,)/($E$68*$F$68+$E$79*$F$79+$E$90*$F$90+$E$102*$F$102),0) -> 0.2 | J79: =IF(ISBLANK($D$79),0,VLOOKUP($D$79,$B$85:$C$88,2,0)) -> 0 | K79: =J79*G79 -> 0 | L79: =IF(ISBLANK(D79),0,IF(D79="Unknown",100*G79,J79*G79)) -> 0 | M79: =IF(AND(D68="Yes",D79="Yes"),"V",IF(OR(D68="No",D79="N/A"),"N/A",IF(D79="Unknown","??","X"))) -> X
B81: Explanations / Examples
B82: The answer to this question will depend on the answer of question 1.2.1.
B84: Score specification
B85: Yes | C85: 100
B86: No | C86: 0
B87: Unknown | C87: 0
B88: N/A | C88: -1
A90: 1.2.3 | B90: If so, will the CSP inform the tenant of any change in the course of the contract? | E90: =IF($D$90="N/A",0,1) -> 1 | F90: 0.2 | G90: =IF(E90,F90*SUM($F$68,$F$79,$F$90,$F$102,)/($E$68*$F$68+$E$79*$F$79+$E$90*$F$90+$E$102*$F$102),0) -> 0.2 | J90: =IF(ISBLANK($D$90),0,VLOOKUP($D$90,$B$97:$C$100,2,0)) -> 0 | K90: =J90*G90 -> 0 | L90: =IF(ISBLANK(D90),0,IF(D90="Unknown",100*G90,J90*G90)) -> 0 | M90: =IF(AND(D68="Yes",D90="Yes"),"V",IF(OR(D68="No",D90="N/A"),"N/A",IF(D90="Unknown","??","X"))) -> X
B92: Explanations / Examples
B93: The answer to this question will depend on the answer of question 1.2.1.
B94: E.g. hiring a new subcontractor.
B96: Score specification
B97: Yes | C97: 100
B98: No | C98: 0
B99: Unknown | C99: 0
B100: N/A | C100: -1
A102: 1.2.4 | B102: If so, does the CSP guarantee contractually to remain fully responsible for his engagements, even with the hiring of subcontractors? | E102: =IF($D$102="N/A",0,1) -> 1 | F102: 0.2 | G102: =IF(E102,F102*SUM($F$68,$F$79,$F$90,$F$102,)/($E$68*$F$68+$E$79*$F$79+$E$90*$F$90+$E$102*$F$102),0) -> 0.2 | J102: =IF(ISBLANK($D$102),0,VLOOKUP($D$102,$B$108:$C$111,2,0)) -> 0 | K102: =J102*G102 -> 0 | L102: =IF(ISBLANK(D102),0,IF(D102="Unknown",100*G102,J102*G102)) -> 0 | M102: =IF(AND(D68="Yes",D102="Yes"),"V",IF(OR(D68="No",D102="N/A"),"N/A",IF(D102="Unknown","??","X"))) -> X
B104: Explanations / Examples
B105: The answer to this question will depend on the answer of question 1.2.1.
B107: Score specification
B108: Yes | C108: 100
B109: No | C109: 0
B110: Unknown | C110: 0
B111: N/A | C111: -1
A113: 1.3 | B113: Audit | E113: 1 | F113: =(F114+F124+F135+F145+F156) -> 1 | G113: =(G114+G124+G135+G145+G156) -> 1 | H113: 0.15 | I113: =IF(E113,H113*SUM($H$6,$H$67,$H$113,$H$170,$H$204,)/($E$6*$H$6+$E$67*$H$67+$E$113*$H$113+$E$170*$H$170+$E$204*$H$204),0) -> 0.15 | K113: =(K114+K124+K135+K145+K156)*I113/100 -> 0 | L113: =(L114+L124+L135+L145+L156)*I113/100 -> 0
A114: 1.3.1 | B114: At which time interval is the cloud service (including all its subcontractors) audited by a third party? | E114: =IF($D114="N/A",0,1) -> 1 | F114: 0.17 | G114: =IF(E114,F114*SUM($F$114,$F$124,$F$135,$F$145,$F$156,)/($E$114*$F$114+$E$124*$F$124+$E$135*$F$135+$E$145*$F$145+$E$156*$F$156),0) -> 0.17 | J114: =IF(ISBLANK($D$114),0,VLOOKUP($D$114,$B$117:$C$122,2,0)) -> 0 | K114: =J114*G114 -> 0 | L114: =IF(ISBLANK(D114),0,IF(D114="Unknown",100*G114,J114*G114)) -> 0 | M114: =IF(OR(D114="",D114="Never"),"X",IF(D114="Unknown","??","V")) -> X
B116: Score specification
B117: ≤ 6 months | C117: 100
B118: 1 year | C118: 75
B119: 2 years | C119: 35
B120: > 2 years | C120: 10
B121: Never | C121: 0
B122: Unknown | C122: 0
A124: 1.3.2 | B124: If the cloud service is audited, are the scopes of the audits accurately defined? | E124: =IF($D$124="N/A",0,1) -> 1 | F124: 0.32 | G124: =IF(E124,F124*SUM($F$114,$F$124,$F$135,$F$145,$F$156,)/($E$114*$F$114+$E$124*$F$124+$E$135*$F$135+$E$145*$F$145+$E$156*$F$156),0) -> 0.32 | J124: =IF(ISBLANK($D$124),0,VLOOKUP($D$124,$B$130:$C$133,2,0)) -> 0 | K124: =J124*G124 -> 0 | L124: =IF(ISBLANK(D124),0,IF(D124="Unknown",100*G124,J124*G124)) -> 0 | M124: =IF(D124="Yes","V",IF(D124="Unknown","??",IF(D124="N/A","N/A","X"))) -> X
B126: Explanations / Examples
B127: The answer to this question will depend on the answer of question 1.3.1.
B129: Score specification
B130: Yes | C130: 100
B131: No | C131: 0
B132: Unknown | C132: 0
B133: N/A | C133: -1
A135: 1.3.3 | B135: At which time interval is the cloud service (including all its subcontractors) pen-tested? | E135: =IF($D135="N/A",0,1) -> 1 | F135: 0.17 | G135: =IF(E135,F135*SUM($F$114,$F$124,$F$135,$F$145,$F$156,)/($E$114*$F$114+$E$124*$F$124+$E$135*$F$135+$E$145*$F$145+$E$156*$F$156),0) -> 0.17 | J135: =IF(ISBLANK($D$135),0,VLOOKUP($D$135,$B$138:$C$143,2,0)) -> 0 | K135: =J135*G135 -> 0 | L135: =IF(ISBLANK(D135),0,IF(D135="Unknown",100*G135,J135*G135)) -> 0 | M135: =IF(OR(D135="",D135="Never"),"X",IF(D135="Unknown","??","V")) -> X
B137: Score specification
B138: 3 months | C138: 100
B139: 6 months | C139: 75
B140: 1 year | C140: 35
B141: > 1 year | C141: 10
B142: Never | C142: 0
B143: Unknown | C143: 0
A145: 1.3.4 | B145: Did the cloud service define an ISP (Information Security Policy) and obtain a security-related certification? | E145: =IF($D145="N/A",0,1) -> 1 | F145: 0.14 | G145: =IF(E145,F145*SUM($F$114,$F$124,$F$135,$F$145,$F$156,)/($E$114*$F$114+$E$124*$F$124+$E$135*$F$135+$E$145*$F$145+$E$156*$F$156),0) -> 0.14 | J145: =IF(ISBLANK($D$145),0,VLOOKUP($D$145,$B$151:$C$154,2,0)) -> 0 | K145: =J145*G145 -> 0 | L145: =IF(ISBLANK(D145),0,IF(D145="Unknown",100*G145,J145*G145)) -> 0 | M145: =IF(OR(D145="Yes, only an ISP",D145="Yes, ISP and certificate(s)"),"V",IF(D145="Unknown","??","X")) -> X
B147: Explanations / Examples
B148: E.g. certificates PCI DSS, HIPAA, ISO 27000, COBIT, SSAE16, SOC2/3, or norm ISAE 3402.
B150: Score specification
B151: Yes, only an ISP | C151: 60
B152: Yes, ISP and certificate(s) | C152: 100
B153: No ISP, no certificate | C153: 0
B154: Unknown | C154: 0
A156: 1.3.5 | B156: Is there a Tier certification of data centers (especially for physical availability and security) or equivalent certification? | E156: =IF($D$156="N/A",0,1) -> 1 | F156: 0.2 | G156: =IF(E156,F156*SUM($F$114,$F$124,$F$135,$F$145,$F$156,)/($E$114*$F$114+$E$124*$F$124+$E$135*$F$135+$E$145*$F$145+$E$156*$F$156),0) -> 0.2 | J156: =IF(ISBLANK($D$156),0,VLOOKUP($D$156,$B$162:$C$168,2,0)) -> 0 | K156: =J156*G156 -> 0 | L156: =IF(ISBLANK(D156),0,IF(D156="Unknown",100*G156,J156*G156)) -> 0 | M156: =IF(OR(D156="No Tier Certification or equivalent",D156=""),"X",IF(D156="Unknown","??",IF(D156="N/A","N/A","V"))) -> X
B158: Explanations / Examples
B159: The documents related to the Tier certification can be found at: http://uptimeinstitute.com/
B161: Score specification
B162: Tier 1 or equivalent | C162: 25
B163: Tier 2 or equivalent | C163: 50
B164: Tier 3 or equivalent | C164: 85
B165: Tier 4 or equivalent | C165: 100
B166: No Tier certification or equivalent | C166: 0
B167: Unknown | C167: 0
B168: N/A | C168: -1
A170: 1.4 | B170: Business continuity | E170: =IF(AND($D$171="N/A",$D$179="N/A",$D$191="N/A"),0,1) -> 1 | F170: =(F171+F179+F191) -> 1 | G170: =(G171+G179+G191) -> 1 | H170: 0.24 | I170: =IF(E170,H170*SUM($H$6,$H$67,$H$113,$H$170,$H$204,)/($E$6*$H$6+$E$67*$H$67+$E$113*$H$113+$E$170*$H$170+$E$204*$H$204),0) -> 0.24 | K170: =(K171+K179+K191)*I170/100 -> 0 | L170: =(L171+L179+L191)*I170/100 -> 0
A171: 1.4.1 | B171: Is the cloud service delivery managed under SLAs (Service Level Agreements)? | E171: =IF($D171="N/A",0,1) -> 1 | F171: 0.33 | G171: =IF(E171,F171*SUM($F$171,$F$179,$F$191,)/($E$171*$F$171+$E$179*$F$179+$E$191*$F$191),0) -> 0.33 | J171: =IF(ISBLANK($D$171),0,VLOOKUP($D$171,$B$174:$C$177,2,0)) -> 0 | K171: =J171*G171 -> 0 | L171: =IF(ISBLANK(D171),0,IF(D171="Unknown",100*G171,J171*G171)) -> 0 | M171: =IF(D171="Yes","V",IF(D171="Unknown","??",IF(D171="N/A","N/A","X"))) -> X
B173: Score specification
B174: Yes | C174: 100
B175: No | C175: 0
B176: Unknown | C176: 0
B177: N/A | C177: -1
A179: 1.4.2 | B179: Does the CSP define and implement a business continuity plan? | E179: =IF($D179="N/A",0,1) -> 1 | F179: 0.33 | G179: =IF(E179,F179*SUM($F$171,$F$179,$F$191,)/($E$171*$F$171+$E$179*$F$179+$E$191*$F$191),0) -> 0.33 | J179: =IF(ISBLANK($D$179),0,VLOOKUP($D$179,$B$186:$C$189,2,0)) -> 0 | K179: =J179*G179 -> 0 | L179: =IF(ISBLANK(D179),0,IF(D179="Unknown",100*G179,J179*G179)) -> 0 | M179: =IF(D179="Yes","V",IF(D179="Unknown","??",IF(D179="N/A","N/A","X"))) -> X
B181: Explanations / Examples
B182: This refers to the continuity of the service in case of incident.
B183: E.g. British Standard BS 25999 certificate for business continuity management.
B185: Score specification
B186: Yes | C186: 100
B187: No | C187: 0
B188: Unknown | C188: 0
B189: N/A | C189: -1
A191: 1.4.3 | B191: Is the reversibility of the cloud service provided? | E191: =IF($D191="N/A",0,1) -> 1 | F191: 0.34 | G191: =IF(E191,F191*SUM($F$171,$F$179,$F$191,)/($E$171*$F$171+$E$179*$F$179+$E$191*$F$191),0) -> 0.34 | J191: =IF(ISBLANK($D$191),0,VLOOKUP($D$191,$B$197:$C$202,2,0)) -> 0 | K191: =J191*G191 -> 0 | L191: =IF(ISBLANK(D191),0,IF(D191="Unknown",100*G191,J191*G191)) -> 0 | M191: =IF(OR(D191="",D191="No"),"X",IF(D191="Unknown","??",IF(D191="N/A","N/A","V"))) -> X
B193: Explanations / Examples
B194: The cloud service should not be a "vendor lock-in" service. The data should be in a standard format, and the data recovery should be automated as much as possible to help a potential migration to a new CSP.
B196: Score specification
B197: No | C197: 0
B198: Yes with an "exit clause" | C198: 60
B199: Yes with a regular and cost-efficient recovery of the data | C199: 80
B200: Yes with a regular and cost-efficient recovery of the data in a structured and documented format | C200: 100
B201: Unknown | C201: 0
B202: N/A | C202: -1
A204: 1.5 | B204: Others | E204: =IF(AND($D$205="N/A",$D$213="N/A"),0,1) -> 1 | F204: =(F205+F213) -> 1 | G204: =(G205+G213) -> 1 | H204: 0.15 | I204: =IF(E204,H204*SUM($H$6,$H$67,$H$113,$H$170,$H$204,)/($E$6*$H$6+$E$67*$H$67+$E$113*$H$113+$E$170*$H$170+$E$204*$H$204),0) -> 0.15 | K204: =(K205+K213)*I204/100 -> 0 | L204: =(L205+L213)*I204/100 -> 0
A205: 1.5.1 | B205: Does the CSP apply a segregation of duties in the CSP organization to protect the tenants? | E205: =IF($D205="N/A",0,1) -> 1 | F205: 0.5 | G205: =IF(E205,F205*SUM($F$205,$F$213,)/($E$205*$F$205+$E$213*$F$213),0) -> 0.5 | J205: =IF(ISBLANK($D$205),0,VLOOKUP($D$205,$B$208:$C$211,2,0)) -> 0 | K205: =J205*G205 -> 0 | L205: =IF(ISBLANK(D205),0,IF(D205="Unknown",100*G205,J205*G205)) -> 0
B207: Score specification
B208: Yes | C208: 100
B209: No | C209: 0
B210: Unknown | C210: 0
B211: N/A | C211: -1
A213: 1.5.2 | B213: If meta-data are extracted by the CSP from the process of tenant's data, are they used for the cloud service only? | E213: =IF($D213="N/A",0,1) -> 1 | F213: 0.5 | G213: =IF(E213,F213*SUM($F$205,$F$213,)/($E$205*$F$205+$E$213*$F$213),0) -> 0.5 | J213: =IF(ISBLANK($D$213),0,VLOOKUP($D$213,$B$216:$C$219,2,0)) -> 0 | K213: =J213*G213 -> 0 | L213: =IF(ISBLANK(D213),0,IF(D213="Unknown",100*G213,J213*G213)) -> 0
B215: Score specification
B216: Yes | C216: 100
B217: No | C217: 0
B218: Unknown | C218: 0
B219: N/A | C219: -1
A221: 2 | B221: Identity and Access Management (IAM) | H221: =(H222+H281+H323) -> 1 | I221: =(I222+I281+I323) -> 1 | K221: =(K222+K281+K323) -> 0 | L221: =(L222+L281+L323) -> 0
A222: 2.1 | B222: Authentication level | E222: =IF(AND($D$223="N/A",$D$234="N/A",$D$248="N/A",$D$259="N/A",$D$270="N/A"),0,1) -> 1 | F222: =(F223+F234+F248+F259+F270) -> 1 | G222: =(G223+G234+G248+G259+G270) -> 1 | H222: 0.34 | I222: =IF(E222,H222*SUM($H$222,$H$281,$H$323,)/($E$222*$H$222+$E$281*$H$281+$E$323*$H$323),0) -> 0.34 | K222: =(K223+K234+K248+K259+K270)*I222/100 -> 0 | L222: =(L223+L234+L248+L259+L270)*I222/100 -> 0
A223: 2.1.1 | B223: Are the different authentication mechanisms to access the cloud service documented? | E223: =IF($D223="N/A",0,1) -> 1 | F223: 0.36 | G223: =IF(E223,F223*SUM($F$223,$F$234,$F$248,$F$259,$F$270,)/($E$223*$F$223+$E$234*$F$234+$E$248*$F$248+$E$259*$F$259+$E$270*$F$270),0) -> 0.36 | J223: =IF(ISBLANK($D$223),0,VLOOKUP($D$223,$B$229:$C$232,2,0)) -> 0 | K223: =J223*G223 -> 0 | L223: =IF(ISBLANK(D223),0,IF(D223="Unknown",100*G223,J223*G223)) -> 0
B225: Explanations / Examples
B226: E.g. the tenant and tenant’s users.
B228: Score specification
B229: Yes | C229: 100
B230: No | C230: 0
B231: Unknown | C231: 0
B232: N/A | C232: -1
A234: 2.1.2 | B234: What is the strongest authentication mechanism to access the cloud service as a tenant system administrator offered by the CSP? | E234: =IF($D234="N/A",0,1) -> 1 | F234: 0.16 | G234: =IF(E234,F234*SUM($F$223,$F$234,$F$248,$F$259,$F$270,)/($E$223*$F$223+$E$234*$F$234+$E$248*$F$248+$E$259*$F$259+$E$270*$F$270),0) -> 0.16 | J234: =IF(ISBLANK($D$234),0,VLOOKUP($D$234,$B$240:$C$246,2,0)) -> 0 | K234: =J234*G234 -> 0 | L234: =IF(ISBLANK(D234),0,IF(D234="Unknown",100*G234,J234*G234)) -> 0
B236: Explanations / Examples
B237: E.g. to create a tenant account.
B239: Score specification
B240: No authentication | C240: 0
B241: Username + password | C241: 10
B242: Username + password + token (e.g. with SMS) | C242: 75
B243: Username + password + digital certificate | C243: 90
B244: Username + password + certificate/token + location | C244: 100
B245: Unknown | C245: 0
B246: N/A | C246: -1
A248: 2.1.3 | B248: What is the strongest authentication mechanism to access the cloud service as a tenant user offered by the CSP? | E248: =IF($D248="N/A",0,1) -> 1 | F248: 0.16 | G248: =IF(E248,F248*SUM($F$223,$F$234,$F$248,$F$259,$F$270,)/($E$223*$F$223+$E$234*$F$234+$E$248*$F$248+$E$259*$F$259+$E$270*$F$270),0) -> 0.16 | J248: =IF(ISBLANK($D$248),0,VLOOKUP($D$248,$B$251:$C$257,2,0)) -> 0 | K248: =J248*G248 -> 0 | L248: =IF(ISBLANK(D248),0,IF(D248="Unknown",100*G248,J248*G248)) -> 0
B250: Score specification
B251: No authentication | C251: 0
B252: Username + password | C252: 20
B253: Username + password + token (e.g. with SMS) | C253: 75
B254: Username + password + digital certificate | C254: 90
B255: Username + password + certificate/token + location | C255: 100
B256: Unknown | C256: 0
B257: N/A | C257: -1
A259: 2.1.4 | B259: Are password policy enforcements well-defined and implemented? | E259: =IF($D259="N/A",0,1) -> 1 | F259: 0.16 | G259: =IF(E259,F259*SUM($F$223,$F$234,$F$248,$F$259,$F$270,)/($E$223*$F$223+$E$234*$F$234+$E$248*$F$248+$E$259*$F$259+$E$270*$F$270),0) -> 0.16 | J259: =IF(ISBLANK($D$259),0,VLOOKUP($D$259,$B$265:$C$268,2,0)) -> 0 | K259: =J259*G259 -> 0 | L259: =IF(ISBLANK(D259),0,IF(D259="Unknown",100*G259,J259*G259)) -> 0
B261: Explanations / Examples
B262: E.g. to change password each month.
... 295 more rows

Sheet Conditional answers (hidden)
A1: Service model | B1: Answer121 | C1: Answer131 | F1: If Answer=Unknown | G1: If Answer=No | H1: If Anwser=Never | I1: If Answer=Yes and expect a Yes/No answer | J1: If Answer=time interval | K1: If ServiceModel=SaaS | L1: If ServiceModel=PaaS | M1: If ServiceModel=IaaS | N1: Chart options
A2: SaaS | B2: Yes | C2: ≤ 6 months | F2: Unknown | G2: N/A | H2: N/A | I2: Yes | J2: Yes | K2: Yes | L2: Yes | M2: N/A | N2: Cloud service DOES satisfy
A3: PaaS | B3: No | C3: 1 year | I3: No | J3: No | K3: No | L3: No | N3: Cloud service MAY satisfy
A4: IaaS | B4: Unknown | C4: 2 years | I4: Unknown | J4: Unknown | K4: Unknown | L4: Unknown | N4: Cloud service DOES NOT satisfy
C5: > 2 years | K5: N/A | L5: N/A
C6: Never
C7: Unknown

Sheet Overview
B1: =CONCATENATE("Score overview of ",Information!C3) -> Score overview of <name>
H3: Compliance with cloud policy (ignoring the data type) | K3: Compliance with cloud policy (if personal/social/medical data)
C4: Minimal weighted score | D4: Maximal weighted score | H4: Does comply | I4: May comply | J4: Does not comply | K4: Does comply | L4: May comply | M4: Does not comply
A5: 1 | B5: Governance | C5: =Assessment!K5 -> 0 | D5: =Assessment!L5 -> 0 | G5: Governance | H5: =COUNTIF(Assessment!$M$5:$M$220,"V") -> 0 | I5: =COUNTIF(Assessment!$M$5:$M$220,"??") -> 0 | J5: =COUNTIF(Assessment!$M$5:$M$220,"X") -> 14 | K5: =H5 -> 0 | L5: 0 | M5: 14
A6: 1 | B6: IAM | C6: =Assessment!K221 -> 0 | D6: =Assessment!L221 -> 0 | G6: IAM | H6: =COUNTIF(Assessment!$M$221:$M$355,"V") -> 0 | I6: =COUNTIF(Assessment!$M$221:$M$355,"??") -> 0 | J6: =COUNTIF(Assessment!$M$221:$M$355,"X") -> 4 | K6: 0 | L6: 0 | M6: 4
A7: 1 | B7: IT Security | C7: =Assessment!K356 -> 0 | D7: =Assessment!L356 -> 0 | G7: IT Security | H7: =COUNTIF(Assessment!$M$356:$M$551,"V") -> 0 | I7: =COUNTIF(Assessment!$M$356:$M$551,"??") -> 0 | J7: =COUNTIF(Assessment!$M$356:$M$551,"X") -> 10 | K7: =COUNTIF(Assessment!$N$356:$N$551,"V")+H7 -> 0 | L7: =COUNTIF(Assessment!$N$356:$N$551,"??")+I7 -> 0 | M7: =COUNTIF(Assessment!$N$356:$N$551,"X")+J7 -> 14
A8: 1 | B8: Operational Security | C8: =Assessment!K552 -> 0 | D8: =Assessment!L552 -> 0 | G8: Operational Security | H8: =COUNTIF(Assessment!$M$552:$M$656,"V") -> 0 | I8: =COUNTIF(Assessment!$M$552:$M$656,"??") -> 0 | J8: =COUNTIF(Assessment!$M$552:$M$656,"X") -> 10 | K8: =H8 -> 0 | L8: =I8 -> 0 | M8: =J8 -> 10

Sheet TempResults (hidden)
D1: Compliance with cloud policy (not depending on data type) | G1: Compliance with cloud policy (depending on data type)
B2: Minimal weighted score | C2: Maximal weighted score | D2: Does comply | E2: May comply | F2: Does not comply | G2: Does comply | H2: May comply | I2: Does not comply | J2: Name of the cloud service
A3: Governance | B3: =Assessment!K5 -> 0 | C3: =Assessment!L5 -> 0 | D3: =COUNTIF(Assessment!$M$5:$M$220,"V") -> 0 | E3: =COUNTIF(Assessment!$M$5:$M$220,"??") -> 0 | F3: =COUNTIF(Assessment!$M$5:$M$220,"X") -> 14 | G3: =D3 -> 0 | H3: 0 | I3: 14 | J3: =Information!C3 -> <name>
A4: IAM | B4: =Assessment!K221 -> 0 | C4: =Assessment!L221 -> 0 | D4: =COUNTIF(Assessment!$M$221:$M$355,"V") -> 0 | E4: =COUNTIF(Assessment!$M$221:$M$355,"??") -> 0 | F4: =COUNTIF(Assessment!$M$221:$M$355,"X") -> 4 | G4: 0 | H4: 0 | I4: 4
A5: IT Security | B5: =Assessment!K356 -> 0 | C5: =Assessment!L356 -> 0 | D5: =COUNTIF(Assessment!$M$356:$M$551,"V") -> 0 | E5: =COUNTIF(Assessment!$M$356:$M$551,"??") -> 0 | F5: =COUNTIF(Assessment!$M$356:$M$551,"X") -> 10 | G5: =COUNTIF(Assessment!$N$356:$N$551,"V")+D5 -> 0 | H5: =COUNTIF(Assessment!$N$356:$N$551,"??")+E5 -> 0 | I5: =COUNTIF(Assessment!$N$356:$N$551,"X")+F5 -> 14
A6: Operational Security | B6: =Assessment!K552 -> 0 | C6: =Assessment!L552 -> 0 | D6: =COUNTIF(Assessment!$M$552:$M$656,"V") -> 0 | E6: =COUNTIF(Assessment!$M$552:$M$656,"??") -> 0 | F6: =COUNTIF(Assessment!$M$552:$M$656,"X") -> 10 | G6: =D6 -> 0 | H6: =E6 -> 0 | I6: =F6 -> 10
